[Event "NK 2022"]
[Site "Groningen, Netherlands"]
[Date "2022.12.28"]
[Round "14.1"]
[White "Warmerdam, Max"]
[Black "Kevlishvili, Robby"]
[Result "0-1"]
[TimeControl "40/90; 30 minutes + increment 30 seconds from start"]
[WhiteTitle "GM"]
[BlackTitle "GM"]
[WhiteFideId "1048104"]
[BlackFideId "1040634"]
[WhiteElo "2619"]
[BlackElo "2530"]

1. d4 {[%clk 00:10:19]} {[%emt 00:00:01]} Nf6 {[%clk 00:10:18]} {[%emt
00:00:03]} 2. c4 {[%clk 00:10:28]} {[%emt 00:00:01]} e6 {[%clk 00:10:24]}
{[%emt 00:00:04]} 3. Nf3 {[%clk 00:10:22]} {[%emt 00:00:16]} b6 {[%clk
00:10:22]} {[%emt 00:00:12]} 4. a3 {[%clk 00:10:26]} {[%emt 00:00:06]} Bb7
{[%clk 00:10:30]} {[%emt 00:00:02]} 5. Nc3 {[%clk 00:10:34]} {[%emt 00:00:02]}
d5 {[%clk 00:10:39]} {[%emt 00:00:01]} 6. Bg5 {[%clk 00:10:43]} {[%emt
00:00:02]} dxc4 {[%clk 00:10:19]} {[%emt 00:00:29]} 7. e3 {[%clk 00:10:16]}
{[%emt 00:00:36]} Nbd7 {[%clk 00:10:21]} {[%emt 00:00:08]} 8. Bxc4 {[%clk
00:10:24]} {[%emt 00:00:02]} h6 {[%clk 00:10:28]} {[%emt 00:00:03]} 9. Bh4
{[%clk 00:10:27]} {[%emt 00:00:07]} a6 {[%clk 00:10:03]} {[%emt 00:00:36]} 10.
O-O {[%clk 00:10:16]} {[%emt 00:00:21]} b5 {[%clk 00:10:10]} {[%emt 00:00:03]}
11. Be2 {[%clk 00:09:48]} {[%emt 00:00:38]} c5 {[%clk 00:10:15]} {[%emt
00:00:04]} 12. dxc5 {[%clk 00:09:41]} {[%emt 00:00:16]} Bxc5 {[%clk 00:10:22]}
{[%emt 00:00:03]} 13. b4 {[%clk 00:09:32]} {[%emt 00:00:19]} Be7 {[%clk
00:10:31]} {[%emt 00:00:01]} 14. Qb3 {[%clk 00:09:32]} {[%emt 00:00:10]} O-O
{[%clk 00:10:15]} {[%emt 00:00:27]} 15. Rfd1 {[%clk 00:09:03]} {[%emt
00:00:40]} Nd5 {[%clk 00:10:14]} {[%emt 00:00:10]} 16. Bxe7 {[%clk 00:08:57]}
{[%emt 00:00:16]} Qxe7 {[%clk 00:10:23]} {[%emt 00:00:01]} 17. a4 {[%clk
00:08:36]} {[%emt 00:00:31]} a5 {[%clk 00:07:27]} {[%emt 00:03:06]} 18. bxa5
{[%clk 00:06:15]} {[%emt 00:02:31]} Nc5 {[%clk 00:07:14]} {[%emt 00:00:23]} 19.
Nxd5 {[%clk 00:03:39]} {[%emt 00:02:46]} Bxd5 {[%clk 00:07:21]} {[%emt
00:00:03]} 20. Qb4 {[%clk 00:02:10]} {[%emt 00:01:38]} bxa4 {[%clk 00:07:29]}
{[%emt 00:00:02]} 21. Rac1 {[%clk 00:02:08]} {[%emt 00:00:12]} Rfc8 {[%clk
00:07:22]} {[%emt 00:00:17]} 22. a6 {[%clk 00:01:19]} {[%emt 00:00:59]} Qf8
{[%clk 00:06:48]} {[%emt 00:00:43]} 23. Nd4 {[%clk 00:01:12]} {[%emt 00:00:16]}
e5 {[%clk 00:05:30]} {[%emt 00:01:29]} 24. Bf3 {[%clk 00:00:40]} {[%emt
00:00:42]} Bxf3 {[%clk 00:05:27]} {[%emt 00:00:13]} 25. Nxf3 {[%clk 00:00:46]}
{[%emt 00:00:04]} Rxa6 {[%clk 00:05:26]} {[%emt 00:00:11]} 26. Nxe5 {[%clk
00:00:50]} {[%emt 00:00:06]} Raa8 {[%clk 00:05:07]} {[%emt 00:00:30]} 27. Rc3
{[%clk 00:00:33]} {[%emt 00:00:26]} Nb3 {[%clk 00:04:56]} {[%emt 00:00:21]} 28.
Rxb3 {[%clk 00:00:36]} {[%emt 00:00:07]} axb3 {[%clk 00:04:56]} {[%emt
00:00:10]} 29. Qxb3 {[%clk 00:00:45]} {[%emt 00:00:01]} Rab8 {[%clk 00:05:00]}
{[%emt 00:00:06]} 30. Qa2 {[%clk 00:00:18]} {[%emt 00:00:37]} Rb5 {[%clk
00:05:06]} {[%emt 00:00:04]} 31. Nf3 {[%clk 00:00:26]} {[%emt 00:00:02]} Rcb8
{[%clk 00:04:47]} {[%emt 00:00:29]} 32. h3 {[%clk 00:00:33]} {[%emt 00:00:04]}
Rb2 {[%clk 00:04:55]} {[%emt 00:00:02]} 33. Qd5 {[%clk 00:00:40]} {[%emt
00:00:02]} Rb1 {[%clk 00:04:47]} {[%emt 00:00:18]} 34. Qd3 {[%clk 00:00:24]}
{[%emt 00:00:26]} Rxd1+ {[%clk 00:04:43]} {[%emt 00:00:14]} 35. Qxd1 {[%clk
00:00:32]} {[%emt 00:00:01]} Qc5 {[%clk 00:04:50]} {[%emt 00:00:03]} 36. Nd4
{[%clk 00:00:34]} {[%emt 00:00:08]} Qc7 {[%clk 00:04:53]} {[%emt 00:00:07]} 37.
g3 {[%clk 00:00:33]} {[%emt 00:00:12]} Qd7 {[%clk 00:04:49]} {[%emt 00:00:14]}
38. h4 {[%clk 00:00:37]} {[%emt 00:00:06]} Qd5 {[%clk 00:04:53]} {[%emt
00:00:06]} 39. Qf3 {[%clk 00:00:29]} {[%emt 00:00:18]} Qa5 {[%clk 00:04:48]}
{[%emt 00:00:15]} 40. Kg2 {[%clk 00:00:34]} {[%emt 00:00:05]} Rc8 {[%clk
00:04:49]} {[%emt 00:00:09]} 41. Qe4 {[%clk 00:00:28]} {[%emt 00:00:16]} Qa6
{[%clk 00:04:38]} {[%emt 00:00:22]} 42. Qb1 {[%clk 00:00:16]} {[%emt 00:00:23]}
Qa8+ {[%clk 00:04:44]} {[%emt 00:00:04]} 43. Nf3 {[%clk 00:00:21]} {[%emt
00:00:04]} Rb8 {[%clk 00:04:48]} {[%emt 00:00:06]} 44. Qc2 {[%clk 00:00:29]}
{[%emt 00:00:02]} Rb6 {[%clk 00:04:55]} {[%emt 00:00:02]} 45. Qc4 {[%clk
00:00:14]} {[%emt 00:00:24]} Rf6 {[%clk 00:05:01]} {[%emt 00:00:05]} 46. e4
{[%clk 00:00:20]} {[%emt 00:00:04]} Re6 {[%clk 00:05:07]} {[%emt 00:00:04]} 47.
e5 {[%clk 00:00:24]} {[%emt 00:00:06]} Rxe5 {[%clk 00:05:15]} {[%emt 00:00:02]}
48. Qf4 {[%clk 00:00:30]} {[%emt 00:00:04]} Re6 {[%clk 00:05:23]} {[%emt
00:00:02]} 49. Qd4 {[%clk 00:00:30]} {[%emt 00:00:09]} Rf6 {[%clk 00:05:30]}
{[%emt 00:00:03]} 50. Qc3 {[%clk 00:00:39]} {[%emt 00:00:01]} Qe4 {[%clk
00:05:27]} {[%emt 00:00:13]} 51. Qb3 {[%clk 00:00:44]} {[%emt 00:00:06]} g5
{[%clk 00:05:04]} {[%emt 00:00:33]} 52. Qc3 {[%clk 00:00:49]} {[%emt 00:00:05]}
Rf5 {[%clk 00:05:03]} {[%emt 00:00:11]} 53. hxg5 {[%clk 00:00:48]} {[%emt
00:00:12]} hxg5 {[%clk 00:05:12]} {[%emt 00:00:01]} 54. Qe3 {[%clk 00:00:57]}
{[%emt 00:00:01]} Qxe3 {[%clk 00:05:20]} {[%emt 00:00:01]} 55. fxe3 {[%clk
00:01:06]} {[%emt 00:00:01]} Kg7 {[%clk 00:05:26]} {[%emt 00:00:04]} 56. Nd4
{[%clk 00:01:11]} {[%emt 00:00:05]} Ra5 {[%clk 00:05:32]} {[%emt 00:00:03]} 57.
Kf3 {[%clk 00:01:20]} {[%emt 00:00:02]} Kf6 {[%clk 00:05:36]} {[%emt 00:00:06]}
58. g4 {[%clk 00:01:25]} {[%emt 00:00:05]} Ra6 {[%clk 00:05:31]} {[%emt
00:00:14]} 59. Nf5 {[%clk 00:01:31]} {[%emt 00:00:04]} Ke5 {[%clk 00:05:37]}
{[%emt 00:00:04]} 60. Ng3 {[%emt 00:00:11]} Rf6+ {[%clk 00:05:38]} 61. Ke2
{[%clk 00:01:48]} {[%emt 00:00:01]} Kd5 {[%clk 00:05:42]} {[%emt 00:00:06]} 62.
Nh5 {[%clk 00:01:57]} {[%emt 00:00:01]} Ra6 {[%clk 00:05:35]} {[%emt 00:00:17]}
63. Ng3 {[%clk 00:02:05]} {[%emt 00:00:02]} Ke5 {[%clk 00:05:33]} {[%emt
00:00:11]} 64. Kf3 {[%clk 00:02:13]} {[%emt 00:00:02]} Ra1 {[%clk 00:05:24]}
{[%emt 00:00:19]} 65. Ke2 {[%clk 00:02:20]} {[%emt 00:00:04]} Rg1 {[%clk
00:05:10]} {[%emt 00:00:25]} 66. Kf2 {[%clk 00:02:29]} {[%emt 00:00:01]} Ra1
{[%clk 00:04:45]} {[%emt 00:00:34]} 67. Ke2 {[%clk 00:02:38]} {[%emt 00:00:01]}
Ra4 {[%clk 00:04:34]} {[%emt 00:00:21]} 68. Kf3 {[%clk 00:02:46]} {[%emt
00:00:02]} Kd5 {[%clk 00:04:37]} {[%emt 00:00:07]} 69. Nf5 {[%clk 00:02:36]}
{[%emt 00:00:20]} Rb4 {[%clk 00:04:31]} {[%emt 00:00:15]} 70. Nh6 {[%clk
00:02:21]} {[%emt 00:00:25]} Rb6 {[%clk 00:04:33]} {[%emt 00:00:09]} 71. Nf5
{[%clk 00:02:29]} {[%emt 00:00:02]} Kc4 {[%clk 00:04:39]} {[%emt 00:00:04]} 72.
Ng3 {[%clk 00:02:00]} {[%emt 00:00:38]} Kd3 {[%clk 00:04:18]} {[%emt 00:00:32]}
73. Ne4 {[%clk 00:02:07]} {[%emt 00:00:03]} Rb5 {[%clk 00:03:47]} {[%emt
00:00:41]} 74. Nf2+ {[%clk 00:01:47]} {[%emt 00:00:30]} Kd2 {[%clk 00:03:38]}
{[%emt 00:00:18]} 75. Ne4+ {[%clk 00:01:55]} {[%emt 00:00:01]} Ke1 {[%clk
00:03:46]} {[%emt 00:00:02]} 76. Nd6 {[%clk 00:01:48]} {[%emt 00:00:17]} Rb2
{[%clk 00:03:45]} {[%emt 00:00:10]} 77. Ne4 {[%clk 00:01:14]} {[%emt 00:00:44]}
f6 {[%clk 00:03:39]} {[%emt 00:00:17]} 78. Ng3 {[%clk 00:01:22]} {[%emt
00:00:02]} Rf2+ {[%clk 00:03:37]} {[%emt 00:00:12]} 79. Ke4 {[%clk 00:01:31]}
{[%emt 00:00:01]} Rg2 {[%clk 00:03:44]} {[%emt 00:00:03]} 80. Nh5 {[%clk
00:01:39]} {[%emt 00:00:01]} Rf2 {[%clk 00:02:09]} {[%emt 00:01:46]} 81. Ng3
{[%clk 00:01:27]} {[%emt 00:00:21]} Kd2 {[%clk 00:02:15]} {[%emt 00:00:05]} 82.
Nf5 {[%clk 00:01:03]} {[%emt 00:00:34]} Rxf5 {[%clk 00:01:52]} {[%emt
00:00:34]} 0-1

[Event "NK 2022"]
[Site "Groningen, Netherlands"]
[Date "2022.12.28"]
[Round "15.1"]
[White "Warmerdam, Max"]
[Black "Kevlishvili, Robby"]
[Result "0-1"]
[TimeControl "40/90; 30 minutes + increment 30 seconds from start"]
[WhiteTitle "GM"]
[BlackTitle "GM"]
[WhiteFideId "1048104"]
[BlackFideId "1040634"]
[WhiteElo "2619"]
[BlackElo "2530"]

1. e4 {[%clk 00:04:03]} {[%emt 00:00:01]} e5 {[%clk 00:05:01]} {[%emt
00:00:04]} 2. Nf3 {[%clk 00:04:04]} {[%emt 00:00:01]} Nc6 {[%clk 00:05:01]}
{[%emt 00:00:01]} 3. Bc4 {[%clk 00:04:04]} {[%emt 00:00:01]} Bc5 {[%clk
00:05:02]} {[%emt 00:00:02]} 4. c3 {[%clk 00:04:05]} Nf6 {[%clk 00:05:03]}
{[%emt 00:00:01]} 5. d4 {[%clk 00:04:06]} exd4 {[%clk 00:05:03]} {[%emt
00:00:02]} 6. e5 {[%clk 00:04:08]} {[%emt 00:00:01]} d5 {[%clk 00:05:03]}
{[%emt 00:00:02]} 7. Be2 {[%clk 00:04:09]} Ne4 {[%clk 00:05:03]} {[%emt
00:00:02]} 8. cxd4 {[%clk 00:04:10]} {[%emt 00:00:01]} Bb4+ {[%clk 00:05:04]}
{[%emt 00:00:01]} 9. Bd2 {[%clk 00:04:11]} {[%emt 00:00:02]} Nxd2 {[%clk
00:05:04]} 10. Nbxd2 {[%clk 00:04:11]} {[%emt 00:00:01]} O-O {[%clk 00:05:04]}
{[%emt 00:00:02]} 11. O-O {[%clk 00:04:11]} {[%emt 00:00:02]} f6 {[%clk
00:04:35]} {[%emt 00:00:31]} 12. a3 {[%clk 00:04:12]} {[%emt 00:00:01]} Be7
{[%clk 00:04:05]} {[%emt 00:00:32]} 13. Rc1 {[%clk 00:02:58]} {[%emt 00:01:16]}
fxe5 {[%clk 00:03:55]} {[%emt 00:00:11]} 14. dxe5 {[%clk 00:02:59]} {[%emt
00:00:02]} Kh8 {[%clk 00:03:52]} {[%emt 00:00:06]} 15. Bb5 {[%clk 00:02:39]}
{[%emt 00:00:22]} Bd7 {[%clk 00:03:50]} {[%emt 00:00:03]} 16. Bd3 {[%clk
00:02:22]} {[%emt 00:00:19]} Qe8 {[%clk 00:03:39]} {[%emt 00:00:13]} 17. Qb3
{[%clk 00:02:13]} {[%emt 00:00:11]} Qh5 {[%clk 00:02:29]} {[%emt 00:01:12]} 18.
Rfe1 {[%clk 00:01:29]} {[%emt 00:00:46]} Rab8 {[%clk 00:01:51]} {[%emt
00:00:40]} 19. Qxd5 {[%clk 00:01:22]} {[%emt 00:00:09]} Rbd8 {[%clk 00:01:52]}
20. Qc4 {[%clk 00:01:05]} {[%emt 00:00:19]} Bg4 {[%clk 00:01:41]} {[%emt
00:00:13]} 21. Be2 {[%clk 00:00:37]} {[%emt 00:00:31]} Qg6 {[%clk 00:01:29]}
{[%emt 00:00:14]} 22. b4 {[%clk 00:00:26]} {[%emt 00:00:12]} Be6 {[%clk
00:01:15]} {[%emt 00:00:16]} 23. Qc3 {[%clk 00:00:24]} {[%emt 00:00:05]} Bd5
{[%clk 00:00:53]} {[%emt 00:00:24]} 24. b5 {[%clk 00:00:20]} {[%emt 00:00:06]}
Nd4 {[%clk 00:00:51]} {[%emt 00:00:03]} 25. Qxd4 {[%clk 00:00:04]} {[%emt
00:00:18]} Bxf3 {[%clk 00:00:51]} {[%emt 00:00:02]} 26. Nxf3 {[%clk 00:00:05]}
{[%emt 00:00:01]} Rxd4 {[%clk 00:00:48]} {[%emt 00:00:04]} 27. Nxd4 {[%clk
00:00:06]} Bxa3 {[%clk 00:00:43]} {[%emt 00:00:07]} 28. Rxc7 {[%clk 00:00:04]}
{[%emt 00:00:04]} Qe4 {[%clk 00:00:35]} {[%emt 00:00:10]} 0-1

[Event "NK 2022"]
[Site "Groningen, Netherlands"]
[Date "2022.12.29"]
[Round "16.1"]
[White "L'Ami, Erwin"]
[Black "Kevlishvili, Robby"]
[Result "1/2-1/2"]
[TimeControl "40/90; 30 minutes + increment 30 seconds from start"]
[WhiteTitle "GM"]
[BlackTitle "GM"]
[WhiteFideId "1007998"]
[BlackFideId "1040634"]
[WhiteElo "2627"]
[BlackElo "2530"]

1. d4 {[%clk 01:30:56]} {[%emt 00:00:03]} d5 {[%clk 01:30:54]} {[%emt
00:00:07]} 2. c4 {[%clk 01:31:14]} {[%emt 00:00:12]} c6 {[%clk 01:31:19]}
{[%emt 00:00:05]} 3. Nf3 {[%clk 01:31:06]} {[%emt 00:00:37]} Nf6 {[%clk
01:31:42]} {[%emt 00:00:07]} 4. e3 {[%clk 01:31:11]} {[%emt 00:00:25]} Bf5
{[%clk 01:32:05]} {[%emt 00:00:08]} 5. Nc3 {[%clk 01:31:32]} {[%emt 00:00:09]}
e6 {[%clk 01:32:26]} {[%emt 00:00:08]} 6. Bd3 {[%clk 01:30:23]} {[%emt
00:01:39]} Bxd3 {[%clk 01:31:23]} {[%emt 00:01:34]} 7. Qxd3 {[%clk 01:30:24]}
{[%emt 00:00:29]} Nbd7 {[%clk 01:31:30]} {[%emt 00:00:23]} 8. O-O {[%clk
01:30:42]} {[%emt 00:00:12]} Be7 {[%clk 01:31:27]} {[%emt 00:00:33]} 9. e4
{[%clk 01:28:17]} {[%emt 00:02:55]} dxe4 {[%clk 01:29:36]} {[%emt 00:02:21]} 10.
Nxe4 {[%clk 01:28:30]} {[%emt 00:00:17]} Nxe4 {[%clk 01:29:53]} {[%emt
00:00:13]} 11. Qxe4 {[%clk 01:28:54]} {[%emt 00:00:06]} O-O {[%clk 01:30:11]}
{[%emt 00:00:13]} 12. Rd1 {[%clk 01:26:00]} {[%emt 00:03:24]} a5 {[%clk
01:25:48]} {[%emt 00:04:53]} 13. a4 {[%clk 01:21:44]} {[%emt 00:04:46]} Re8
{[%clk 01:17:23]} {[%emt 00:08:54]} 14. Bf4 {[%clk 01:18:26]} {[%emt 00:03:48]}
Qb6 {[%clk 01:16:32]} {[%emt 00:01:22]} 15. Qc2 {[%clk 01:15:24]} {[%emt
00:03:31]} Rad8 {[%clk 01:14:16]} {[%emt 00:02:46]} 16. Rd3 {[%clk 01:13:07]}
{[%emt 00:02:47]} Nf8 {[%clk 01:10:13]} {[%emt 00:04:34]} 17. Rad1 {[%clk
01:08:47]} {[%emt 00:04:49]} Ng6 {[%clk 01:09:21]} {[%emt 00:01:19]} 18. Be3
{[%clk 01:04:59]} {[%emt 00:04:20]} Qc7 {[%clk 01:08:56]} {[%emt 00:00:55]} 19.
g3 {[%clk 00:58:43]} {[%emt 00:06:47]} Bb4 {[%clk 01:00:36]} {[%emt 00:08:50]}
20. b3 {[%clk 00:54:43]} {[%emt 00:04:30]} h6 {[%clk 00:56:08]} {[%emt
00:04:58]} 21. Kg2 {[%clk 00:51:48]} {[%emt 00:03:25]} Ne7 {[%clk 00:45:51]}
{[%emt 00:10:47]} 22. Bf4 {[%clk 00:49:48]} {[%emt 00:02:29]} Qc8 {[%clk
00:45:15]} {[%emt 00:01:07]} 23. Bc1 {[%clk 00:47:48]} {[%emt 00:02:30]} b5
{[%clk 00:40:36]} {[%emt 00:05:10]} 24. Ne5 {[%clk 00:43:08]} {[%emt 00:05:10]}
bxa4 {[%clk 00:36:51]} {[%emt 00:04:15]} 25. bxa4 {[%clk 00:43:21]} {[%emt
00:00:16]} c5 {[%clk 00:31:00]} {[%emt 00:06:23]} 26. dxc5 {[%clk 00:35:04]}
{[%emt 00:08:47]} Rxd3 {[%clk 00:30:03]} 27. Qxd3 {[%clk 00:34:41]} {[%emt
00:02:20]} Bxc5 {[%clk 00:17:58]} {[%emt 00:12:35]} 28. Qf3 {[%clk 00:21:02]}
{[%emt 00:14:07]} f6 {[%clk 00:15:15]} {[%emt 00:03:14]} 29. Nd3 {[%clk
00:16:37]} {[%emt 00:04:55]} Bb6 {[%clk 00:14:21]} {[%emt 00:01:25]} 30. c5
{[%clk 00:12:36]} {[%emt 00:04:31]} Bxc5 {[%clk 00:12:51]} {[%emt 00:02:00]} 31.
Bxh6 {[%clk 00:11:25]} {[%emt 00:01:40]} Bb6 {[%clk 00:12:21]} {[%emt
00:01:01]} 32. Rc1 {[%clk 00:06:48]} {[%emt 00:05:07]} Qd7 {[%clk 00:12:20]}
{[%emt 00:00:32]} 33. Be3 {[%clk 00:07:05]} {[%emt 00:00:12]} Bxe3 {[%clk
00:10:58]} {[%emt 00:01:53]} 34. Qxe3 {[%clk 00:07:29]} {[%emt 00:00:06]} Nd5
{[%clk 00:09:49]} {[%emt 00:01:38]} 35. Qe4 {[%clk 00:07:18]} {[%emt 00:00:41]}
Qd6 {[%clk 00:08:16]} {[%emt 00:02:03]} 36. h4 {[%clk 00:05:58]} {[%emt
00:01:49]} Nb4 {[%clk 00:05:51]} {[%emt 00:02:56]} 37. Nxb4 {[%clk 00:05:46]}
{[%emt 00:00:43]} Qxb4 {[%clk 00:06:14]} {[%emt 00:00:06]} 38. Rc4 {[%clk
00:06:09]} {[%emt 00:00:07]} Qd6 {[%clk 00:06:17]} {[%emt 00:00:26]} 39. Rc6
{[%clk 00:05:57]} {[%emt 00:00:42]} Qd7 {[%clk 00:06:32]} {[%emt 00:00:15]} 40.
Rc5 {[%clk 00:04:55]} {[%emt 00:01:32]} Qa7 {[%clk 00:02:16]} {[%emt 00:04:47]}
41. Rb5 {[%clk 00:28:00]} {[%emt 00:07:24]} Qa8 {[%clk 00:31:38]} {[%emt
00:01:08]} 42. Kf3 {[%clk 00:21:10]} {[%emt 00:07:19]} Qa6 {[%clk 00:26:20]}
{[%emt 00:05:48]} 43. Kg2 {[%clk 00:16:45]} {[%emt 00:04:55]} Qa8 {[%clk
00:26:31]} {[%emt 00:00:20]} 44. Qxa8 {[%clk 00:16:21]} {[%emt 00:00:54]} Rxa8
{[%clk 00:26:58]} {[%emt 00:00:04]} 45. Kf3 {[%clk 00:14:28]} {[%emt 00:02:22]}
Kf7 {[%clk 00:26:29]} {[%emt 00:00:59]} 46. Ke4 {[%clk 00:13:21]} {[%emt
00:01:37]} Kg6 {[%clk 00:26:06]} {[%emt 00:00:53]} 47. Rc5 {[%clk 00:09:40]}
{[%emt 00:04:11]} e5 {[%clk 00:25:05]} {[%emt 00:01:31]} 48. Rb5 {[%clk
00:10:01]} {[%emt 00:00:09]} Ra7 {[%clk 00:24:58]} {[%emt 00:00:37]} 49. f4
{[%clk 00:09:43]} {[%emt 00:00:47]} exf4 {[%clk 00:25:16]} {[%emt 00:00:12]} 50.
Kxf4 {[%clk 00:10:04]} {[%emt 00:00:09]} Rc7 {[%clk 00:22:04]} {[%emt
00:03:42]} 51. Rxa5 {[%clk 00:09:38]} {[%emt 00:00:56]} Rc4+ {[%clk 00:22:17]}
{[%emt 00:00:17]} 52. Kf3 {[%clk 00:10:02]} {[%emt 00:00:06]} f5 {[%clk
00:21:50]} {[%emt 00:00:57]} 53. Ra6+ {[%clk 00:09:17]} {[%emt 00:01:15]} Kh5
{[%clk 00:18:35]} {[%emt 00:03:44]} 54. a5 {[%clk 00:06:17]} {[%emt 00:03:31]}
g5 {[%clk 00:12:37]} {[%emt 00:06:29]} 55. Ra8 {[%clk 00:05:59]} {[%emt
00:00:48]} Rc3+ {[%clk 00:13:01]} {[%emt 00:00:05]} 56. Kf2 {[%clk 00:06:12]}
{[%emt 00:00:17]} gxh4 {[%clk 00:05:47]} {[%emt 00:07:44]} 57. a6 {[%clk
00:04:56]} {[%emt 00:01:45]} hxg3+ {[%clk 00:06:05]} {[%emt 00:00:12]} 58. Kg2
{[%clk 00:02:51]} {[%emt 00:02:35]} Rc7 {[%clk 00:04:12]} {[%emt 00:02:23]} 59.
a7 {[%clk 00:00:35]} {[%emt 00:02:47]} Rh7 {[%clk 00:04:29]} {[%emt 00:00:12]}
60. Kxg3 {[%clk 00:01:00]} {[%emt 00:00:05]} Rg7+ {[%clk 00:04:01]} {[%emt
00:00:58]} 61. Kf3 {[%clk 00:01:04]} {[%emt 00:00:25]} Kg5 {[%clk 00:04:19]}
{[%emt 00:00:13]} 62. Kg3 {[%clk 00:01:29]} {[%emt 00:00:05]} Kh5+ {[%clk
00:04:45]} {[%emt 00:00:05]} 63. Kf4 {[%clk 00:01:57]} {[%emt 00:00:02]} Kg6
{[%clk 00:05:09]} {[%emt 00:00:05]} 64. Ke3 {[%clk 00:01:16]} {[%emt 00:01:11]}
Kg5 {[%clk 00:05:27]} {[%emt 00:00:12]} 65. Kf3 {[%clk 00:01:38]} {[%emt
00:00:08]} f4 {[%clk 00:05:34]} {[%emt 00:00:23]} 66. Rb8 {[%clk 00:01:25]}
{[%emt 00:00:43]} 1/2-1/2